[Event "*** SCC Grand Prix: Titled Tuesday Blitz"]
[Site "Chess.com"]
[Date "2020.07.14"]
[Round "2"]
[White "MacDaddyMac"]
[Black "26andrej26"]
[Result "1-0"]
[WhiteElo "2308"]
[BlackElo "2532"]
[TimeControl "180+1"]
[EndTime "10:18:36 PDT"]
[Termination "MacDaddyMac won by checkmate"]

1. e4 {[%clk 0:03:00.9]} 1... c5 {[%clk 0:03:00]} 2. Nc3 {[%clk 0:03:00.6]} 2...
a6 {[%clk 0:02:59.5]} 3. f4 {[%clk 0:02:59]} 3... b5 {[%clk 0:02:59.7]} 4. Nf3
{[%clk 0:02:59.3]} 4... Bb7 {[%clk 0:02:58.9]} 5. d3 {[%clk 0:02:59.6]} 5... e6
{[%clk 0:02:58.8]} 6. g3 {[%clk 0:02:59.7]} 6... b4 {[%clk 0:02:58.2]} 7. Ne2
{[%clk 0:02:56.9]} 7... d5 {[%clk 0:02:58.8]} 8. e5 {[%clk 0:02:53.7]} 8... h5
{[%clk 0:02:59.4]} 9. Bg2 {[%clk 0:02:53.4]} 9... Nh6 {[%clk 0:02:59.7]} 10. Nh4
{[%clk 0:02:49.5]} 10... Be7 {[%clk 0:02:58.9]} 11. d4 {[%clk 0:02:49.8]} 11...
Bxh4 {[%clk 0:02:58]} 12. gxh4 {[%clk 0:02:50.1]} 12... Qxh4+ {[%clk 0:02:58]}
13. Kf1 {[%clk 0:02:50.6]} 13... a5 {[%clk 0:02:36.3]} 14. Qe1 {[%clk
0:02:41.9]} 14... Qxe1+ {[%clk 0:02:35.6]} 15. Kxe1 {[%clk 0:02:42.8]} 15... Ba6
{[%clk 0:02:35]} 16. dxc5 {[%clk 0:02:40.6]} 16... Bxe2 {[%clk 0:02:34.4]} 17.
Kxe2 {[%clk 0:02:41.5]} 17... Nf5 {[%clk 0:02:31.9]} 18. a3 {[%clk 0:02:37]}
18... bxa3 {[%clk 0:02:21.9]} 19. Rxa3 {[%clk 0:02:37.9]} 19... Nc6 {[%clk
0:02:18.3]} 20. c3 {[%clk 0:02:32.8]} 20... Kd7 {[%clk 0:02:16.4]} 21. Kd3
{[%clk 0:02:21.2]} 21... Rhb8 {[%clk 0:02:14.6]} 22. Rd1 {[%clk 0:02:16.7]}
22... Rb5 {[%clk 0:02:13.8]} 23. Bf3 {[%clk 0:01:49.4]} 23... Rxc5 {[%clk
0:02:10.9]} 24. Bxh5 {[%clk 0:01:42.1]} 24... Rh8 {[%clk 0:02:07.4]} 25. Bxf7
{[%clk 0:01:34.5]} 25... Ke7 {[%clk 0:02:07.5]} 26. Bg6 {[%clk 0:01:33.7]} 26...
Rh3+ {[%clk 0:02:03.6]} 27. Kc2 {[%clk 0:01:31.1]} 27... Rxh2+ {[%clk
0:02:02.5]} 28. Kb1 {[%clk 0:01:31.2]} 28... Nh4 {[%clk 0:01:40]} 29. Bc2 {[%clk
0:01:21.2]} 29... d4 {[%clk 0:01:21.8]} 30. Be4 {[%clk 0:01:02.1]} 30... dxc3
{[%clk 0:01:14]} 31. Rxc3 {[%clk 0:00:58.3]} 31... Rxc3 {[%clk 0:01:10.9]} 32.
bxc3 {[%clk 0:00:59.2]} 32... Nb8 {[%clk 0:00:56.9]} 33. Ba3+ {[%clk 0:00:54.4]}
33... Ke8 {[%clk 0:00:54.3]} 34. Bd6 {[%clk 0:00:49.3]} 34... Na6 {[%clk
0:00:47.3]} 35. Bc6+ {[%clk 0:00:46.1]} 35... Kf7 {[%clk 0:00:47.5]} 36. Bb5
{[%clk 0:00:45.3]} 36... Ng2 {[%clk 0:00:36.7]} 37. f5 {[%clk 0:00:32.1]} 37...
Ne3 {[%clk 0:00:28.9]} 38. fxe6+ {[%clk 0:00:30.7]} 38... Kxe6 {[%clk
0:00:29.1]} 39. Rd3 {[%clk 0:00:23.1]} 39... Rh1+ {[%clk 0:00:24.5]} 40. Ka2
{[%clk 0:00:17.1]} 40... Rh2+ {[%clk 0:00:19.9]} 41. Kb3 {[%clk 0:00:15.7]}
41... Ng4 {[%clk 0:00:14.3]} 42. Bc4+ {[%clk 0:00:14.8]} 42... Kf5 {[%clk
0:00:14.2]} 43. Bxa6 {[%clk 0:00:11.5]} 43... Nxe5 {[%clk 0:00:13.6]} 44. Rd5
{[%clk 0:00:11.1]} 44... a4+ {[%clk 0:00:11.9]} 45. Ka3 {[%clk 0:00:08]} 45...
Re2 {[%clk 0:00:11.3]} 46. Bxe2 {[%clk 0:00:06.4]} 46... Ke6 {[%clk 0:00:08.9]}
47. Rxe5+ {[%clk 0:00:07.3]} 47... Kxd6 {[%clk 0:00:09.2]} 48. Rg5 {[%clk
0:00:07.7]} 48... Ke6 {[%clk 0:00:09.3]} 49. Rg4 {[%clk 0:00:07.9]} 49... Kf6
{[%clk 0:00:10.2]} 50. Kxa4 {[%clk 0:00:08.4]} 50... g5 {[%clk 0:00:11.1]} 51.
Kb4 {[%clk 0:00:09.2]} 51... Kf5 {[%clk 0:00:12]} 52. c4 {[%clk 0:00:09.3]}
52... Ke5 {[%clk 0:00:12.9]} 53. c5 {[%clk 0:00:09.8]} 53... Kf6 {[%clk
0:00:13.8]} 54. Kb5 {[%clk 0:00:10.2]} 54... Ke6 {[%clk 0:00:14.7]} 55. c6
{[%clk 0:00:11.1]} 55... Kd6 {[%clk 0:00:15.6]} 56. Kb6 {[%clk 0:00:11.4]} 56...
Ke5 {[%clk 0:00:15.6]} 57. c7 {[%clk 0:00:12.3]} 57... Kf5 {[%clk 0:00:16.3]}
58. Rxg5+ {[%clk 0:00:13.1]} 58... Kf6 {[%clk 0:00:16.9]} 59. c8=Q {[%clk
0:00:13.3]} 59... Kxg5 {[%clk 0:00:17.6]} 60. Qe6 {[%clk 0:00:13]} 60... Kf4
{[%clk 0:00:17.8]} 61. Qg4+ {[%clk 0:00:13.3]} 61... Ke3 {[%clk 0:00:18.4]} 62.
Qf3+ {[%clk 0:00:13.6]} 62... Kd2 {[%clk 0:00:18.9]} 63. Ba6 {[%clk 0:00:13.4]}
63... Ke1 {[%clk 0:00:19.3]} 64. Qe2# {[%clk 0:00:13.4]} 1-0

[Event "*** SCC Grand Prix: Titled Tuesday Blitz"]
[Site "Chess.com"]
[Date "2020.07.14"]
[Round "2"]
[White "Annawel"]
[Black "Mr_Sinigami"]
[Result "0-1"]
[WhiteElo "2948"]
[BlackElo "2583"]
[TimeControl "180+1"]
[EndTime "10:18:37 PDT"]
[Termination "Mr_Sinigami won by checkmate"]

1. e4 {[%clk 0:03:00.9]} 1... c5 {[%clk 0:02:58.7]} 2. d3 {[%clk 0:03:00.4]}
2... e6 {[%clk 0:02:57.5]} 3. g3 {[%clk 0:03:00.1]} 3... d5 {[%clk 0:02:56.4]}
4. Bg2 {[%clk 0:03:00.5]} 4... Nf6 {[%clk 0:02:56]} 5. f4 {[%clk 0:02:53]} 5...
Nc6 {[%clk 0:02:36.6]} 6. e5 {[%clk 0:02:48.5]} 6... Nd7 {[%clk 0:02:35.8]} 7.
Nf3 {[%clk 0:02:49.4]} 7... Be7 {[%clk 0:02:30.6]} 8. O-O {[%clk 0:02:48.1]}
8... O-O {[%clk 0:02:24.2]} 9. Qe2 {[%clk 0:02:42.1]} 9... b5 {[%clk 0:02:23.4]}
10. g4 {[%clk 0:02:25.6]} 10... Qc7 {[%clk 0:02:00.2]} 11. Be3 {[%clk
0:02:21.4]} 11... b4 {[%clk 0:01:54.9]} 12. Nbd2 {[%clk 0:02:21]} 12... Rb8
{[%clk 0:01:51]} 13. Bf2 {[%clk 0:02:19.7]} 13... Ba6 {[%clk 0:01:25.2]} 14. Bg3
{[%clk 0:01:58.5]} 14... Qb6 {[%clk 0:00:47.3]} 15. f5 {[%clk 0:01:54.2]} 15...
c4+ {[%clk 0:00:46.9]} 16. Kh1 {[%clk 0:01:54.4]} 16... cxd3 {[%clk 0:00:46.1]}
17. cxd3 {[%clk 0:01:55.3]} 17... Nc5 {[%clk 0:00:34.7]} 18. Ne1 {[%clk
0:01:55.3]} 18... Rfe8 {[%clk 0:00:24.1]} 19. f6 {[%clk 0:01:44.3]} 19... Bf8
{[%clk 0:00:23.8]} 20. fxg7 {[%clk 0:01:44.5]} 20... Bxg7 {[%clk 0:00:23.7]} 21.
Rc1 {[%clk 0:01:45.3]} 21... Rbc8 {[%clk 0:00:20.3]} 22. Ndf3 {[%clk 0:01:23.8]}
22... Qb5 {[%clk 0:00:18.7]} 23. Rd1 {[%clk 0:01:13.9]} 23... Re7 {[%clk
0:00:17.3]} 24. Bh4 {[%clk 0:01:13.1]} 24... Rec7 {[%clk 0:00:15.9]} 25. Bf6
{[%clk 0:01:13.5]} 25... Ne4 {[%clk 0:00:14.5]} 26. Bxg7 {[%clk 0:01:11.8]}
26... Kxg7 {[%clk 0:00:14.5]} 27. Qe3 {[%clk 0:01:12.5]} 27... Qc5 {[%clk
0:00:11.4]} 28. Qe2 {[%clk 0:00:47.8]} 28... Qb5 {[%clk 0:00:11]} 29. Nc2 {[%clk
0:00:29.6]} 29... Qc5 {[%clk 0:00:08.7]} 30. Rc1 {[%clk 0:00:23.3]} 30... Qe7
{[%clk 0:00:08.4]} 31. Qe3 {[%clk 0:00:22.7]} 31... h6 {[%clk 0:00:07.8]} 32.
Rfe1 {[%clk 0:00:18.1]} 32... Ng5 {[%clk 0:00:07.2]} 33. Nd2 {[%clk 0:00:17.2]}
33... Nd8 {[%clk 0:00:05.6]} 34. h4 {[%clk 0:00:13.6]} 34... Nh7 {[%clk
0:00:04.1]} 35. Qg3 {[%clk 0:00:11.3]} 35... Rxc2 {[%clk 0:00:03.1]} 36. Rxc2
{[%clk 0:00:12.2]} 36... Rxc2 {[%clk 0:00:03.2]} 37. Nb3 {[%clk 0:00:13.1]}
37... Rxb2 {[%clk 0:00:02.8]} 38. Nd4 {[%clk 0:00:13.5]} 38... Rd2 {[%clk
0:00:02.4]} 39. Nf5+ {[%clk 0:00:14.1]} 39... exf5 {[%clk 0:00:02.3]} 40. gxf5+
{[%clk 0:00:15]} 40... Kh8 {[%clk 0:00:02.2]} 41. f6 {[%clk 0:00:15.9]} 41...
Qf8 {[%clk 0:00:02.4]} 42. Rg1 {[%clk 0:00:15.8]} 42... Ne6 {[%clk 0:00:02]} 43.
Bxd5 {[%clk 0:00:15.7]} 43... Rxd3 {[%clk 0:00:02]} 44. Qg2 {[%clk 0:00:16.1]}
44... Rxd5 {[%clk 0:00:01.8]} 45. Qxd5 {[%clk 0:00:17]} 45... Qc8 {[%clk
0:00:01.2]} 46. Qd6 {[%clk 0:00:16.7]} 46... Bb7+ {[%clk 0:00:01.9]} 47. Kh2
{[%clk 0:00:17.2]} 47... Qc2+ {[%clk 0:00:02]} 48. Kh3 {[%clk 0:00:17.9]} 48...
Qc3+ {[%clk 0:00:02.5]} 49. Rg3 {[%clk 0:00:18.5]} 49... Qc8 {[%clk 0:00:01.6]}
50. Qe7 {[%clk 0:00:18.5]} 50... Nf4+ {[%clk 0:00:01.9]} 51. Kh2 {[%clk
0:00:19.2]} 51... Qc2+ {[%clk 0:00:02.4]} 52. Kg1 {[%clk 0:00:19.9]} 52... Qd1+
{[%clk 0:00:02.9]} 53. Kf2 {[%clk 0:00:20.4]} 53... Qd2+ {[%clk 0:00:03.3]} 54.
Kg1 {[%clk 0:00:21.3]} 54... Qe1+ {[%clk 0:00:03.3]} 55. Kh2 {[%clk 0:00:22.2]}
55... Qh1# {[%clk 0:00:03.6]} 0-1

[Event "*** SCC Grand Prix: Titled Tuesday Blitz"]
[Site "Chess.com"]
[Date "2020.07.14"]
[Round "2"]
[White "MIlorenzana271"]
[Black "chessdjw"]
[Result "1-0"]
[WhiteElo "2382"]
[BlackElo "2659"]
[TimeControl "180+1"]
[EndTime "10:18:37 PDT"]
[Termination "MIlorenzana271 won by checkmate"]

1. e4 {[%clk 0:03:00.9]} 1... e5 {[%clk 0:02:59.5]} 2. Nf3 {[%clk 0:03:00]} 2...
Nc6 {[%clk 0:02:59.9]} 3. Bc4 {[%clk 0:02:59.2]} 3... Bc5 {[%clk 0:02:59.4]} 4.
c3 {[%clk 0:02:59.1]} 4... Nf6 {[%clk 0:02:59.4]} 5. d3 {[%clk 0:02:59.1]} 5...
d6 {[%clk 0:02:59.5]} 6. a4 {[%clk 0:02:59.2]} 6... a5 {[%clk 0:02:59.6]} 7. Qb3
{[%clk 0:02:57.2]} 7... O-O {[%clk 0:02:59]} 8. O-O {[%clk 0:02:56.6]} 8... h6
{[%clk 0:02:55.3]} 9. h3 {[%clk 0:02:56.6]} 9... Nh5 {[%clk 0:02:48.9]} 10. Be3
{[%clk 0:02:54.9]} 10... Qf6 {[%clk 0:02:32]} 11. Nbd2 {[%clk 0:02:44]} 11...
Nf4 {[%clk 0:02:26]} 12. Bxf4 {[%clk 0:02:28.3]} 12... Qxf4 {[%clk 0:02:24.7]}
13. Bd5 {[%clk 0:02:23.4]} 13... Ne7 {[%clk 0:01:56.1]} 14. d4 {[%clk
0:02:21.1]} 14... Ba7 {[%clk 0:01:48.7]} 15. Rfe1 {[%clk 0:02:12.4]} 15... c6
{[%clk 0:01:48]} 16. Bc4 {[%clk 0:02:11.2]} 16... Ng6 {[%clk 0:01:46.9]} 17. Bf1
{[%clk 0:02:07.3]} 17... Kh8 {[%clk 0:01:33.7]} 18. Rad1 {[%clk 0:01:47.7]}
18... Rb8 {[%clk 0:01:32]} 19. Qc4 {[%clk 0:01:42.2]} 19... Qf6 {[%clk
0:01:18.3]} 20. g3 {[%clk 0:01:37.9]} 20... Be6 {[%clk 0:01:10.3]} 21. Qd3
{[%clk 0:01:37.3]} 21... Rfe8 {[%clk 0:00:54.7]} 22. Bg2 {[%clk 0:01:36.5]}
22... Rbd8 {[%clk 0:00:42.4]} 23. d5 {[%clk 0:01:20.6]} 23... cxd5 {[%clk
0:00:34.8]} 24. exd5 {[%clk 0:01:20.1]} 24... Bd7 {[%clk 0:00:35]} 25. b3 {[%clk
0:01:14.5]} 25... Qe7 {[%clk 0:00:34]} 26. Nc4 {[%clk 0:01:10.5]} 26... f5
{[%clk 0:00:33.3]} 27. Qc2 {[%clk 0:01:06.3]} 27... e4 {[%clk 0:00:28.8]} 28.
Nd4 {[%clk 0:01:05.2]} 28... Ne5 {[%clk 0:00:27.7]} 29. Nxa5 {[%clk 0:00:59.4]}
29... Rc8 {[%clk 0:00:21.1]} 30. Qd2 {[%clk 0:00:42.9]} 30... Nd3 {[%clk
0:00:20.2]} 31. Re3 {[%clk 0:00:42.5]} 31... Qf6 {[%clk 0:00:19.2]} 32. Rxd3
{[%clk 0:00:41.7]} 32... exd3 {[%clk 0:00:18.6]} 33. Qxd3 {[%clk 0:00:42.3]}
33... Bxd4 {[%clk 0:00:17.9]} 34. cxd4 {[%clk 0:00:42.4]} 34... Rc7 {[%clk
0:00:16.7]} 35. Nc4 {[%clk 0:00:41.6]} 35... b5 {[%clk 0:00:15.5]} 36. Na5
{[%clk 0:00:37]} 36... bxa4 {[%clk 0:00:15]} 37. Nc6 {[%clk 0:00:37]} 37... axb3
{[%clk 0:00:14]} 38. Qxb3 {[%clk 0:00:37.2]} 38... Kh7 {[%clk 0:00:13.5]} 39.
Qb6 {[%clk 0:00:36.8]} 39... Rec8 {[%clk 0:00:13.4]} 40. Re1 {[%clk 0:00:35.1]}
40... Be8 {[%clk 0:00:13.5]} 41. Re6 {[%clk 0:00:33.8]} 41... Qf8 {[%clk
0:00:13.4]} 42. Qb4 {[%clk 0:00:32.7]} 42... Bf7 {[%clk 0:00:13.9]} 43. Rxd6
{[%clk 0:00:32.3]} 43... Ra8 {[%clk 0:00:09.5]} 44. Qc5 {[%clk 0:00:31.2]} 44...
Ra1+ {[%clk 0:00:09.2]} 45. Kh2 {[%clk 0:00:30.6]} 45... Rc8 {[%clk 0:00:10.1]}
46. Rd7 {[%clk 0:00:30.3]} 46... Bg6 {[%clk 0:00:10]} 47. Qc3 {[%clk 0:00:26.9]}
47... Ra2 {[%clk 0:00:08.8]} 48. Qe3 {[%clk 0:00:26.2]} 48... f4 {[%clk
0:00:08.9]} 49. Qxf4 {[%clk 0:00:25.9]} 49... Qxf4 {[%clk 0:00:08.4]} 50. gxf4
{[%clk 0:00:26.6]} 50... Rxf2 {[%clk 0:00:08.9]} 51. Kg3 {[%clk 0:00:27.5]}
51... Rd2 {[%clk 0:00:08.7]} 52. d6 {[%clk 0:00:26.3]} 52... Be8 {[%clk
0:00:08.8]} 53. Rc7 {[%clk 0:00:25.3]} 53... Ra8 {[%clk 0:00:07.8]} 54. d7
{[%clk 0:00:24.8]} 54... Bxd7 {[%clk 0:00:08.5]} 55. Rxd7 {[%clk 0:00:24.6]}
55... Ra3+ {[%clk 0:00:09.4]} 56. Bf3 {[%clk 0:00:23.8]} 56... Rd1 {[%clk
0:00:09.4]} 57. Ne5 {[%clk 0:00:22.8]} 57... Rg1+ {[%clk 0:00:09]} 58. Kf2
{[%clk 0:00:22.7]} 58... Rc1 {[%clk 0:00:09.1]} 59. Be4+ {[%clk 0:00:22.8]}
59... Kg8 {[%clk 0:00:08.1]} 60. Rd8# {[%clk 0:00:22.2]} 1-0

[Event "*** SCC Grand Prix: Titled Tuesday Blitz"]
[Site "Chess.com"]
[Date "2020.07.14"]
[Round "2"]
[White "Siniauski"]
[Black "2008king"]
[Result "1-0"]
[WhiteElo "2446"]
[BlackElo "2242"]
[TimeControl "180+1"]
[EndTime "10:18:37 PDT"]
[Termination "Siniauski won by checkmate"]

1. e4 {[%clk 0:03:00.9]} 1... e5 {[%clk 0:02:59.4]} 2. Nf3 {[%clk 0:03:01.4]}
2... Nc6 {[%clk 0:02:59.2]} 3. Bc4 {[%clk 0:03:00.8]} 3... Bc5 {[%clk
0:02:58.6]} 4. b4 {[%clk 0:03:00.6]} 4... Bxb4 {[%clk 0:02:57]} 5. c3 {[%clk
0:02:59.7]} 5... Be7 {[%clk 0:02:55.8]} 6. d4 {[%clk 0:02:59.5]} 6... Na5 {[%clk
0:02:54.2]} 7. Bd3 {[%clk 0:02:59.2]} 7... d6 {[%clk 0:02:49.8]} 8. O-O {[%clk
0:02:57.8]} 8... Nf6 {[%clk 0:02:49.5]} 9. Nbd2 {[%clk 0:02:57.4]} 9... O-O
{[%clk 0:02:47.5]} 10. Bb2 {[%clk 0:02:56.5]} 10... Bg4 {[%clk 0:02:32.3]} 11.
h3 {[%clk 0:02:53.1]} 11... Be6 {[%clk 0:02:12.3]} 12. c4 {[%clk 0:02:47.4]}
12... exd4 {[%clk 0:01:50.5]} 13. Nxd4 {[%clk 0:02:48.3]} 13... Nc6 {[%clk
0:01:50.8]} 14. Nxc6 {[%clk 0:02:40.1]} 14... bxc6 {[%clk 0:01:51.7]} 15. Qc2
{[%clk 0:02:40.2]} 15... h6 {[%clk 0:01:46.1]} 16. e5 {[%clk 0:02:35.9]} 16...
Nd7 {[%clk 0:01:43.4]} 17. f4 {[%clk 0:02:27.9]} 17... Nc5 {[%clk 0:01:35.4]}
18. Bh7+ {[%clk 0:01:46.8]} 18... Kh8 {[%clk 0:01:32.2]} 19. f5 {[%clk
0:01:47.4]} 19... Kxh7 {[%clk 0:01:22.3]} 20. fxe6+ {[%clk 0:01:44.1]} 20... Kg8
{[%clk 0:01:22.2]} 21. exf7+ {[%clk 0:01:35.3]} 21... Rxf7 {[%clk 0:01:23.1]}
22. Rxf7 {[%clk 0:01:33.3]} 22... Kxf7 {[%clk 0:01:24]} 23. Qh7 {[%clk
0:01:15.9]} 23... dxe5 {[%clk 0:01:14.8]} 24. Rf1+ {[%clk 0:01:04.8]} 24... Bf6
{[%clk 0:01:09.7]} 25. Bxe5 {[%clk 0:01:04.3]} 25... Nd7 {[%clk 0:00:43.9]} 26.
Ne4 {[%clk 0:00:39.2]} 26... Nxe5 {[%clk 0:00:21.7]} 27. Rxf6+ {[%clk
0:00:38.3]} 27... Qxf6 {[%clk 0:00:22.3]} 28. Nxf6 {[%clk 0:00:37.8]} 28... Kxf6
{[%clk 0:00:23.2]} 29. Qe4 {[%clk 0:00:35.3]} 29... Rd8 {[%clk 0:00:18.1]} 30.
Qh4+ {[%clk 0:00:31.8]} 30... g5 {[%clk 0:00:17.2]} 31. Qxh6+ {[%clk 0:00:31.9]}
31... Ng6 {[%clk 0:00:16.1]} 32. Qh5 {[%clk 0:00:28.9]} 32... Rd2 {[%clk
0:00:16.4]} 33. Qf3+ {[%clk 0:00:27.2]} 33... Nf4 {[%clk 0:00:16.5]} 34. Qc3+
{[%clk 0:00:27.1]} 34... Rd4 {[%clk 0:00:11.9]} 35. Qf3 {[%clk 0:00:20.5]} 35...
Kf5 {[%clk 0:00:12.8]} 36. g3 {[%clk 0:00:18.4]} 36... Rxc4 {[%clk 0:00:10.9]}
37. gxf4 {[%clk 0:00:18.5]} 37... Rxf4 {[%clk 0:00:11.8]} 38. Qxc6 {[%clk
0:00:18.7]} 38... g4 {[%clk 0:00:11.3]} 39. Qd7+ {[%clk 0:00:17]} 39... Kg5
{[%clk 0:00:11]} 40. Qg7+ {[%clk 0:00:16.4]} 40... Kf5 {[%clk 0:00:11.2]} 41.
Qf7+ {[%clk 0:00:16.3]} 41... Kg5 {[%clk 0:00:11.7]} 42. Qe7+ {[%clk 0:00:16.4]}
42... Kf5 {[%clk 0:00:11.8]} 43. hxg4+ {[%clk 0:00:17]} 43... Kxg4 {[%clk
0:00:12.7]} 44. Qxc7 {[%clk 0:00:16.1]} 44... Kf3 {[%clk 0:00:13.4]} 45. Qxa7
{[%clk 0:00:15.2]} 45... Rg4+ {[%clk 0:00:14.3]} 46. Kf1 {[%clk 0:00:15.7]}
46... Rc4 {[%clk 0:00:14.2]} 47. Qf7+ {[%clk 0:00:15.1]} 47... Rf4 {[%clk
0:00:14.6]} 48. Qb3+ {[%clk 0:00:15]} 48... Kg4+ {[%clk 0:00:14.6]} 49. Ke2
{[%clk 0:00:15.8]} 49... Kf5 {[%clk 0:00:15.1]} 50. a4 {[%clk 0:00:15.2]} 50...
Re4+ {[%clk 0:00:16]} 51. Kd3 {[%clk 0:00:15.2]} 51... Ke5 {[%clk 0:00:16.6]}
52. Qb5+ {[%clk 0:00:15]} 52... Kf4 {[%clk 0:00:16.8]} 53. Qb8+ {[%clk
0:00:13.3]} 53... Re5 {[%clk 0:00:17]} 54. Kd4 {[%clk 0:00:13.6]} 54... Kf3
{[%clk 0:00:17.6]} 55. Qxe5 {[%clk 0:00:14.4]} 55... Kf2 {[%clk 0:00:17.2]} 56.
a5 {[%clk 0:00:15.3]} 56... Kg2 {[%clk 0:00:18.1]} 57. a6 {[%clk 0:00:16]} 57...
Kf3 {[%clk 0:00:19]} 58. a7 {[%clk 0:00:16.6]} 58... Kf2 {[%clk 0:00:19.9]} 59.
a8=Q {[%clk 0:00:17.1]} 59... Kf1 {[%clk 0:00:20.3]} 60. Qf8+ {[%clk 0:00:17]}
60... Kg2 {[%clk 0:00:20.4]} 61. Qeg7+ {[%clk 0:00:17.9]} 61... Kh3 {[%clk
0:00:21.3]} 62. Qfh8# {[%clk 0:00:18.7]} 1-0

[Event "*** SCC Grand Prix: Titled Tuesday Blitz"]
[Site "Chess.com"]
[Date "2020.07.14"]
[Round "2"]
[White "GAusal"]
[Black "Baronessa08"]
[Result "0-1"]
[WhiteElo "2045"]
[BlackElo "2363"]
[TimeControl "180+1"]
[EndTime "10:18:39 PDT"]
[Termination "Baronessa08 won by resignation"]

1. e4 {[%clk 0:03:00.9]} 1... c5 {[%clk 0:02:55.9]} 2. f4 {[%clk 0:02:59.6]}
2... Nc6 {[%clk 0:02:55]} 3. Nf3 {[%clk 0:02:55.7]} 3... g6 {[%clk 0:02:55.1]}
4. h4 {[%clk 0:02:52.3]} 4... h5 {[%clk 0:02:50.9]} 5. Bc4 {[%clk 0:02:49.2]}
5... Bg7 {[%clk 0:02:48.8]} 6. Nc3 {[%clk 0:02:45.2]} 6... e6 {[%clk 0:02:46]}
7. e5 {[%clk 0:02:41.5]} 7... Nge7 {[%clk 0:02:44.6]} 8. d3 {[%clk 0:02:40.7]}
8... Nf5 {[%clk 0:02:42.9]} 9. Ne4 {[%clk 0:02:37.5]} 9... d5 {[%clk 0:02:35.4]}
10. exd6 {[%clk 0:02:34]} 10... Nxd6 {[%clk 0:02:35.4]} 11. O-O {[%clk
0:02:28.9]} 11... O-O {[%clk 0:02:24.7]} 12. c3 {[%clk 0:02:25]} 12... Nxc4
{[%clk 0:02:21.4]} 13. dxc4 {[%clk 0:02:20.7]} 13... Qe7 {[%clk 0:02:21.8]} 14.
Be3 {[%clk 0:02:16]} 14... b6 {[%clk 0:02:21.2]} 15. Qe2 {[%clk 0:02:11.6]}
15... Bb7 {[%clk 0:02:15]} 16. Rfd1 {[%clk 0:02:11.5]} 16... Rad8 {[%clk
0:02:00.6]} 17. g3 {[%clk 0:02:04.5]} 17... Nb8 {[%clk 0:01:57]} 18. Bf2 {[%clk
0:02:00.6]} 18... Qc7 {[%clk 0:01:52.8]} 19. Nfg5 {[%clk 0:01:54.9]} 19... Qc6
{[%clk 0:01:46.2]} 20. b4 {[%clk 0:01:45.1]} 20... cxb4 {[%clk 0:01:42.4]} 21.
Rxd8 {[%clk 0:01:37.9]} 21... Rxd8 {[%clk 0:01:41.2]} 22. Rd1 {[%clk 0:01:34.4]}
22... Rxd1+ {[%clk 0:01:12.5]} 23. Qxd1 {[%clk 0:01:33.4]} 23... Qd7 {[%clk
0:01:12.9]} 24. Qxd7 {[%clk 0:01:26.6]} 24... Nxd7 {[%clk 0:01:13.8]} 25. cxb4
{[%clk 0:01:25.7]} 25... Bf8 {[%clk 0:00:53.4]} 26. a3 {[%clk 0:01:24.2]} 26...
f6 {[%clk 0:00:49.2]} 27. Nxf6+ {[%clk 0:01:15.8]} 27... Nxf6 {[%clk 0:00:46.5]}
28. Nxe6 {[%clk 0:01:16.7]} 28... Ne4 {[%clk 0:00:38.8]} 29. c5 {[%clk
0:01:14.3]} 29... Nxf2 {[%clk 0:00:35.2]} 30. Kxf2 {[%clk 0:01:14.5]} 30... bxc5
{[%clk 0:00:34.5]} 31. bxc5 {[%clk 0:01:12.9]} 31... Kf7 {[%clk 0:00:33.4]} 32.
Nd8+ {[%clk 0:01:11.3]} 32... Kf6 {[%clk 0:00:30.2]} 33. Nxb7 {[%clk 0:01:12.2]}
33... Ke6 {[%clk 0:00:28.8]} 34. c6 {[%clk 0:01:09.2]} 34... Bxa3 {[%clk
0:00:24.8]} 35. Na5 {[%clk 0:01:05]} 35... Bc5+ {[%clk 0:00:22.4]} 36. Kf3
{[%clk 0:01:04.5]} 36... Bb6 {[%clk 0:00:22.7]} 37. Nc4 {[%clk 0:01:02.9]} 37...
Bc7 {[%clk 0:00:19.2]} 38. g4 {[%clk 0:01:02.1]} 38... a5 {[%clk 0:00:18.1]} 39.
gxh5 {[%clk 0:00:57.9]} 39... gxh5 {[%clk 0:00:17.8]} 40. Ke4 {[%clk 0:00:57]}
40... a4 {[%clk 0:00:17.1]} 41. f5+ {[%clk 0:00:57]} 41... Kf6 {[%clk
0:00:16.9]} 42. Ne3 {[%clk 0:00:33.4]} 42... a3 {[%clk 0:00:10.9]} 43. Nc2
{[%clk 0:00:28.2]} 43... a2 {[%clk 0:00:10.6]} 44. Kd4 {[%clk 0:00:21.8]} 44...
Kxf5 {[%clk 0:00:10.3]} 45. Kc5 {[%clk 0:00:22.7]} 45... Kg4 {[%clk 0:00:09.2]}
46. Kb5 {[%clk 0:00:23.6]} 46... Kxh4 {[%clk 0:00:09.1]} 47. Kb4 {[%clk
0:00:23.1]} 47... Kg3 {[%clk 0:00:08.5]} 48. Kb3 {[%clk 0:00:23.5]} 48... h4
{[%clk 0:00:08.6]} 49. Kxa2 {[%clk 0:00:24.4]} 49... h3 {[%clk 0:00:07.8]} 50.
Nd4 {[%clk 0:00:20.1]} 50... h2 {[%clk 0:00:06.1]} 51. Ne6 {[%clk 0:00:20.1]}
51... h1=Q {[%clk 0:00:05.6]} 52. Nxc7 {[%clk 0:00:19.6]} 52... Qxc6 {[%clk
0:00:04.2]} 53. Kb3 {[%clk 0:00:20.5]} 53... Qxc7 {[%clk 0:00:04.3]} 0-1